{"text_format":"2","workbook":"xlsx","n_sheets":11,"sheets":["LOT B GUEYO","LOT B MEAGUI","LOT B SASSANDRA","LOT B FRESCO","LOT B JACQUEVILLE","LOT B GRAND LAHOU","LOT B BUYO","LOT B SOUBRE","LOT B SAN PEDRO","LOT B TABOU","RECAP. LOT B"],"not_rendered":{"charts":0,"images":0,"macros":0,"external_links":0,"defined_names":9,"comments":0,"pivot_tables":0},"unopened":[],"bounds":{"document_bytes":16777216,"sheet_cells":100000,"run_cost":"one","rows_first":2000,"rows_last":500,"rows_between":2000,"halvings":0,"cell_chars":16384,"cell_head_chars":4096},"cells_cut":0,"cells_raw":0,"read":"whole","date_system":"1900"}

{"sheet":"LOT B GUEYO","index":0,"n_rows":66,"n_cols":6,"rows_kept":66,"cut":false,"hidden":false,"merged":[[59,1,59,3],[59,4,59,5],[60,1,60,3],[1,0,1,5],[10,0,10,4],[33,0,33,4],[52,0,52,4],[55,0,55,3],[55,4,55,5],[64,1,64,3],[65,0,65,3],[65,4,65,5],[60,4,60,5],[61,1,61,3],[61,4,61,5],[62,1,62,3],[62,4,62,5],[63,1,63,3],[63,4,63,5]]}
[]
["VARIANTE 2 - DQ PROJET D'AMENAGEMENT D'ENTREPÔT POUR LA COMMISSION ELECTORALE LOCALE DE GUEYO / COMMISSION ELECTORALE INDEPENDANTE"]
[]
["N°","DESIGNATION DES OUVRAGES","U","QTE","P.U","PRIX TOTAL"]
[]
["0.0","LOT N°0 : GENERALITES"]
[]
["0.1","GENERALITES"]
["0.1.1","Elaboration des plans d'exécution, essais de conformité et transmission de fiches techniques","forf.",1]
[]
["TOTAL LOT N°0 : GENERALITES"]
[]
["10.0","LOT N°10 : ELECTRICITE"]
[]
["10.1","ALIMENTATION PRINCIPALE"]
["10.1.1","Branchement niche CIE et raccordement électrique"]
["10.1.1.1","F/P câble HFG 1000 4 x 6 mm2","ml",50]
["10.1.2","Mise à la terre et liaisons équipotentielles"]
["10.1.2.1","Mise à la terre par câble cuivre nu 25 mm2 y/c raccords bimétalliques et barrette de coupure","ml",{"$f":"2*(12.192+2.438)","v":29.26}]
["10.1.3","Tableau de distribution"]
["10.1.3.1","F/P Coffret 16 modules y/c protections de tête triphasé et protections de circuits par DPN","u",1]
["10.2","DISTRIBUTION INTERIEURE"]
["10.2.1","Câblages électriques "]
["10.2.1.1","F/P câble U 500 VGV 3 x 1,5 mm2 sous tube isolant et sous goulotte","ml",28.8]
["10.3","APPAREILLAGES"]
["10.3.1","Interrupteurs"]
["10.3.1.1","F/P Interrupteur D.A  étanche de type apparent","u",1]
["10.3.2","Appareils d'éclairage"]
["10.3.2.1","F/P Réglette fluo-mono LED nue 0,60 m 18 w","u",6]
["10.3.2.2","F/P Réglette fluo-mono étanche 1,20 m  36 w","u",4]
["10.4","DIVERS"]
["10.4.1","Frais de contrôle SECUREL","ens.",1]
[]
["TOTAL LOT N°10 : ELECTRICITE"]
[]
["18.0","LOT N°18 : PEINTURE"]
[]
["18.1","TRAVAUX PREPARATOIRES"," "]
["18.1.1","Travaux préliminaires"]
["18.1.1.1","Brossage, égrenage et époussetage de maçonneries et ouvrages béton","m² ",37.29]
["18.1.1.2","Grattage, lavage et nettoyage par dégraissage des supports ferreux","m² ",{"$f":"+D47","v":210.11339200000003}]
["18.2","PEINTURE SUR OUVRAGES MACONNES ET BETONS"]
["18.2.1","Peinture sur plateforme"]
["18.2.1.1","F/P Peinture de sol acrylique satiné type FREITASOL AQUA COLOR","m² ",37.29]
["18.3","PEINTURE SUR ELEMENTS FERREUX"]
["18.3.1","Traitement anticorrosion des éléments ferreux"]
["18.3.1.1","F/A Primaire par SIGMACOVER 280 de chez SEIGNEURIE en deux (2) couches","m² ",{"$f":"2*(12.129*2.591*2+2.438*2.591*2+2.438*12.129)","v":210.11339200000003}]
["18.3.2","Peinture de finition sur éléments ferreux"]
["18.3.2.1","F/A Peinture de finition par SIGMADUR 550 de chez SEIGNEURIE en deux (2) couches","m² ",{"$f":"+D47","v":210.11339200000003}]
["18.4","DIVERS"]
["18.4.1","Panneau calligraphique en plexiglas format 80 x 60 ép. 6 mm sur supports métalliques y compris fixations et pose","ens.",1]
[]
["TOTAL LOT N°18 : PEINTURE"]
[]
[]
["TOTAL GENERAL HT (F CFA)"]
[]
[]
[]
["N°","DESIGNATION",null,null,"MONTANT"]
[]
[1,"LOT N°0 : GENERALITES"]
[5,"LOT N°10 : ELECTRICITE"]
[7,"LOT N°18 : PEINTURE"]
[]
["TOTAL GENERAL HT (F CFA)"]

{"sheet":"LOT B MEAGUI","index":1,"n_rows":66,"n_cols":6,"rows_kept":66,"cut":false,"hidden":false,"merged":[[1,0,1,5],[10,0,10,4],[33,0,33,4],[52,0,52,4],[55,0,55,3],[55,4,55,5],[65,0,65,3],[65,4,65,5],[59,1,59,3],[59,4,59,5],[60,1,60,3],[60,4,60,5],[61,1,61,3],[61,4,61,5],[62,1,62,3],[62,4,62,5],[63,1,63,3],[63,4,63,5],[64,1,64,3]]}
[]
["VARIANTE 2 - DQ PROJET D'AMENAGEMENT D'ENTREPÔT POUR LA COMMISSION ELECTORALE LOCALE DE MEAGUI / COMMISSION ELECTORALE INDEPENDANTE"]
[]
["N°","DESIGNATION DES OUVRAGES","U","QTE","P.U","PRIX TOTAL"]
[]
["0.0","LOT N°0 : GENERALITES"]
[]
["0.1","GENERALITES"]
["0.1.1","Elaboration des plans d'exécution, essais de conformité et transmission de fiches techniques","forf.",1]
[]
["TOTAL LOT N°0 : GENERALITES"]
[]
["10.0","LOT N°10 : ELECTRICITE"]
[]
["10.1","ALIMENTATION PRINCIPALE"]
["10.1.1","Branchement niche CIE et raccordement électrique"]
["10.1.1.1","F/P câble HFG 1000 4 x 6 mm2","ml",50]
["10.1.2","Mise à la terre et liaisons équipotentielles"]
["10.1.2.1","Mise à la terre par câble cuivre nu 25 mm2 y/c raccords bimétalliques et barrette de coupure","ml",{"$f":"2*(12.192+2.438)","v":29.26}]
["10.1.3","Tableau de distribution"]
["10.1.3.1","F/P Coffret 16 modules y/c protections de tête triphasé et protections de circuits par DPN","u",1]
["10.2","DISTRIBUTION INTERIEURE"]
["10.2.1","Câblages électriques "]
["10.2.1.1","F/P câble U 500 VGV 3 x 1,5 mm2 sous tube isolant et sous goulotte","ml",28.8]
["10.3","APPAREILLAGES"]
["10.3.1","Interrupteurs"]
["10.3.1.1","F/P Interrupteur D.A  étanche de type apparent","u",1]
["10.3.2","Appareils d'éclairage"]
["10.3.2.1","F/P Réglette fluo-mono LED nue 0,60 m 18 w","u",6]
["10.3.2.2","F/P Réglette fluo-mono étanche 1,20 m  36 w","u",4]
["10.4","DIVERS"]
["10.4.1","Frais de contrôle SECUREL","ens.",1]
[]
["TOTAL LOT N°10 : ELECTRICITE"]
[]
["18.0","LOT N°18 : PEINTURE"]
[]
["18.1","TRAVAUX PREPARATOIRES"," "]
["18.1.1","Travaux préliminaires"]
["18.1.1.1","Brossage, égrenage et époussetage de maçonneries et ouvrages béton","m² ",37.29]
["18.1.1.2","Grattage, lavage et nettoyage par dégraissage des supports ferreux","m² ",{"$f":"+D47","v":210.11339200000003}]
["18.2","PEINTURE SUR OUVRAGES MACONNES ET BETONS"]
["18.2.1","Peinture sur plateforme"]
["18.2.1.1","F/P Peinture de sol acrylique satiné type FREITASOL AQUA COLOR","m² ",37.29]
["18.3","PEINTURE SUR ELEMENTS FERREUX"]
["18.3.1","Traitement anticorrosion des éléments ferreux"]
["18.3.1.1","F/A Primaire par SIGMACOVER 280 de chez SEIGNEURIE en deux (2) couches","m² ",{"$f":"2*(12.129*2.591*2+2.438*2.591*2+2.438*12.129)","v":210.11339200000003}]
["18.3.2","Peinture de finition sur éléments ferreux"]
["18.3.2.1","F/A Peinture de finition par SIGMADUR 550 de chez SEIGNEURIE en deux (2) couches","m² ",{"$f":"+D47","v":210.11339200000003}]
["18.4","DIVERS"]
["18.4.1","Panneau calligraphique en plexiglas format 80 x 60 ép. 6 mm sur supports métalliques y compris fixations et pose","ens.",1]
[]
["TOTAL LOT N°18 : PEINTURE"]
[]
[]
["TOTAL GENERAL HT (F CFA)"]
[]
[]
[]
["N°","DESIGNATION",null,null,"MONTANT"]
[]
[1,"LOT N°0 : GENERALITES"]
[5,"LOT N°10 : ELECTRICITE"]
[7,"LOT N°18 : PEINTURE"]
[]
["TOTAL GENERAL HT (F CFA)"]

{"sheet":"LOT B SASSANDRA","index":2,"n_rows":104,"n_cols":6,"rows_kept":104,"cut":false,"hidden":false,"merged":[[94,1,94,3],[94,4,94,5],[1,0,1,5],[12,0,12,4],[19,0,19,4],[29,0,29,4],[35,0,35,4],[37,0,37,4],[45,0,45,4],[68,0,68,4],[87,0,87,4],[90,0,90,3],[90,4,90,5],[95,1,95,3],[95,4,95,5],[96,1,96,3],[96,4,96,5],[97,1,97,3],[97,4,97,5],[98,1,98,3],[98,4,98,5],[99,1,99,3],[99,4,99,5],[100,1,100,3],[100,4,100,5],[101,1,101,3],[101,4,101,5],[102,1,102,3],[103,0,103,3],[103,4,103,5]]}
[]
["VARIANTE 3 - DQ PROJET D'AMENAGEMENT D'ENTREPÔTS POUR LA COMMISSION ELECTORALE LOCALE DE SASSANDRA / COMMISSION ELECTORALE INDEPENDANTE"]
[]
["N°","DESIGNATION DES OUVRAGES","U","QTE","P.U","PRIX TOTAL"]
[]
["0.0","LOT N°0 : GENERALITES"]
[]
["0.1","GENERALITES"]
["0.1.1","Démolition du socle existant","forf.",1]
["0.1.2","Implantation de l'ouvrage","m2",{"$f":"(12.192+0.5)*(2.438+0.5)","v":37.289096000000001}]
["0.1.3","Elaboration des plans d'exécution, essais de conformité et transmission de fiches techniques","forf.",1]
[]
["TOTAL LOT N°0 : GENERALITES"]
[]
["1.0","LOT N°1 : TERRASSEMENTS"]
[]
["1.1","FOUILLES DE FONDATIONS"]
["1.1.1","Fouilles de la plateforme","m3",{"$f":"12.629*2.938*0.25","v":9.2760005000000003}]
[]
["TOTAL LOT N°1 : TERRASSEMENTS"]
[]
["2.0","LOT N°2 : GROS OEUVRE"]
[]
["2.1","OUVRAGES EN INFRASTRUCTURE"]
["2.1.1","Béton de propreté dosé à 150 kg/m3 d'ép. 5 cm","m3",{"$f":"((12.192+0.5)*(2.438+0.5))*0.05","v":1.8644548000000001}]
["2.1.2","Plate-forme en BA de terre-plein"]
["2.1.2.1","Béton de forme d'épaisseur 45 cm minimum y compris armatures","m² ",{"$f":"(12.192+0.5)*(2.438+0.5)","v":37.289096000000001}]
["2.1.2.2","Coffrage bois ","m² ",{"$f":"2*(12.629+2.938)*0.15","v":4.6700999999999997}]
[]
["SOUS TOTAL 2.1 "]
[]
["2.2","OUVRAGES EN SUPERSTRUCTURE "]
["2.2.1","Enduits sur ouvrages bétons"]
["2.2.1.1","Enduit ciment hydrofuge lissé ","m² ",{"$f":"8*(4*0.5*0.55)+2*(12.629+2.938)","v":39.933999999999997}]
[]
["SOUS TOTAL 2.2"]
[]
["TOTAL LOT N°2 : GROS ŒUVRE "]
[]
["6.0","LOT N°6 : SERRURERIE"]
[]
["6.1","CONTENEUR"]
["6.1.1","Conteneur maritime existant"]
["6.1.1.1","Manutention du conteneur existant sur la plate-forme béton","u",1]
[]
["TOTAL LOT N°6 : SERRURERIE"]
[]
["10.0","LOT N°10 : ELECTRICITE"]
[]
["10.1","ALIMENTATION PRINCIPALE"]
["10.1.1","Branchement niche CIE et raccordement électrique"]
["10.1.1.1","F/P câble HFG 1000 4 x 6 mm2","ml",50]
["10.1.2","Mise à la terre et liaisons équipotentielles"]
["10.1.2.1","Mise à la terre par câble cuivre nu 25 mm2 y/c raccords bimétalliques et barrette de coupure","ml",{"$f":"2*(12.192+2.438)","v":29.26}]
["10.1.3","Tableau de distribution"]
["10.1.3.1","F/P Coffret 16 modules y/c protections de tête triphasé et protections de circuits par DPN","u",1]
["10.2","DISTRIBUTION INTERIEURE"]
["10.2.1","Câblages électriques "]
["10.2.1.1","F/P câble U 500 VGV 3 x 1,5 mm2 sous tube isolant et sous goulotte","ml",28.8]
["10.3","APPAREILLAGES"]
["10.3.1","Interrupteurs"]
["10.3.1.1","F/P Interrupteur D.A  étanche de type apparent","u",1]
["10.3.2","Appareils d'éclairage"]
["10.3.2.1","F/P Réglette fluo-mono LED nue 0,60 m 18 w","u",6]
["10.3.2.2","F/P Réglette fluo-mono étanche 1,20 m  36 w","u",4]
["10.4","DIVERS"]
["10.4.1","Frais de contrôle SECUREL","ens.",1]
[]
["TOTAL LOT N°10 : ELECTRICITE"]
[]
["18.0","LOT N°18 : PEINTURE"]
[]
["18.1","TRAVAUX PREPARATOIRES"," "]
["18.1.1","Travaux préliminaires"]
["18.1.1.1","Brossage, égrenage et époussetage de maçonneries et ouvrages béton","m² ",{"$f":"+D10","v":37.289096000000001}]
["18.1.1.2","Grattage, lavage et nettoyage par dégraissage des supports ferreux","m² ",{"$f":"+D82","v":210.11339200000003}]
["18.2","PEINTURE SUR OUVRAGES MACONNES ET BETONS"]
["18.2.1","Peinture sur plateforme"]
["18.2.1.1","F/P Peinture de sol acrylique satiné type FREITASOL AQUA COLOR","m² ",{"$f":"+D10","v":37.289096000000001}]
["18.3","PEINTURE SUR ELEMENTS FERREUX"]
["18.3.1","Traitement anticorrosion des éléments ferreux"]
["18.3.1.1","F/A Primaire par SIGMACOVER 280 de chez SEIGNEURIE en deux (2) couches","m² ",{"$f":"2*(12.129*2.591*2+2.438*2.591*2+2.438*12.129)","v":210.11339200000003}]
["18.3.2","Peinture de finition sur éléments ferreux"]
["18.3.2.1","F/A Peinture de finition par SIGMADUR 550 de chez SEIGNEURIE en deux (2) couches","m² ",{"$f":"+D82","v":210.11339200000003}]
["18.4","DIVERS"]
["18.4.1","Panneau calligraphique en plexiglas format 80 x 60 ép. 6 mm sur supports métalliques y compris fixations et pose","ens.",1]
[]
["TOTAL LOT N°18 : PEINTURE"]
[]
[]
["TOTAL GENERAL HT (F CFA)"]
[]
[]
[]
["N°","DESIGNATION",null,null,"MONTANT"]
[]
[1,"LOT N°0 : GENERALITES"]
[2,"LOT N°1 : TERRASSEMENTS"]
[3,"LOT N°2 : GROS OEUVRE"]
[4,"LOT N°6 : SERRURERIE"]
[5,"LOT N°10 : ELECTRICITE"]
[7,"LOT N°18 : PEINTURE"]
[]
["TOTAL GENERAL HT (F CFA)"]

{"sheet":"LOT B FRESCO","index":3,"n_rows":104,"n_cols":6,"rows_kept":104,"cut":false,"hidden":false,"merged":[[94,1,94,3],[94,4,94,5],[1,0,1,5],[12,0,12,4],[19,0,19,4],[29,0,29,4],[35,0,35,4],[37,0,37,4],[45,0,45,4],[68,0,68,4],[87,0,87,4],[90,0,90,3],[90,4,90,5],[95,1,95,3],[95,4,95,5],[96,1,96,3],[96,4,96,5],[97,1,97,3],[97,4,97,5],[98,1,98,3],[98,4,98,5],[99,1,99,3],[99,4,99,5],[100,1,100,3],[100,4,100,5],[101,1,101,3],[101,4,101,5],[102,1,102,3],[103,0,103,3],[103,4,103,5]]}
[]
["VARIANTE 3 - DQ PROJET D'AMENAGEMENT D'ENTREPÔTS POUR LA COMMISSION ELECTORALE LOCALE DE FRESCO / COMMISSION ELECTORALE INDEPENDANTE"]
[]
["N°","DESIGNATION DES OUVRAGES","U","QTE","P.U","PRIX TOTAL"]
[]
["0.0","LOT N°0 : GENERALITES"]
[]
["0.1","GENERALITES"]
["0.1.1","Démolition du socle existant","forf.",1]
["0.1.2","Implantation de l'ouvrage","m2",{"$f":"(12.192+0.5)*(2.438+0.5)","v":37.289096000000001}]
["0.1.3","Elaboration des plans d'exécution, essais de conformité et transmission de fiches techniques","forf.",1]
[]
["TOTAL LOT N°0 : GENERALITES"]
[]
["1.0","LOT N°1 : TERRASSEMENTS"]
[]
["1.1","FOUILLES DE FONDATIONS"]
["1.1.1","Fouilles de la plateforme","m3",{"$f":"12.629*2.938*0.25","v":9.2760005000000003}]
[]
["TOTAL LOT N°1 : TERRASSEMENTS"]
[]
["2.0","LOT N°2 : GROS OEUVRE"]
[]
["2.1","OUVRAGES EN INFRASTRUCTURE"]
["2.1.1","Béton de propreté dosé à 150 kg/m3 d'ép. 5 cm","m3",{"$f":"((12.192+0.5)*(2.438+0.5))*0.05","v":1.8644548000000001}]
["2.1.2","Plate-forme en BA de terre-plein"]
["2.1.2.1","Béton de forme d'épaisseur 45 cm minimum y compris armatures","m² ",{"$f":"(12.192+0.5)*(2.438+0.5)","v":37.289096000000001}]
["2.1.2.2","Coffrage bois ","m² ",{"$f":"2*(12.629+2.938)*0.15","v":4.6700999999999997}]
[]
["SOUS TOTAL 2.1 "]
[]
["2.2","OUVRAGES EN SUPERSTRUCTURE "]
["2.2.1","Enduits sur ouvrages bétons"]
["2.2.1.1","Enduit ciment hydrofuge lissé ","m² ",{"$f":"8*(4*0.5*0.55)+2*(12.629+2.938)","v":39.933999999999997}]
[]
["SOUS TOTAL 2.2"]
[]
["TOTAL LOT N°2 : GROS ŒUVRE "]
[]
["6.0","LOT N°6 : SERRURERIE"]
[]
["6.1","CONTENEUR"]
["6.1.1","Conteneur maritime existant"]
["6.1.1.1","Manutention du conteneur existant sur la plate-forme béton","u",1]
[]
["TOTAL LOT N°6 : SERRURERIE"]
[]
["10.0","LOT N°10 : ELECTRICITE"]
[]
["10.1","ALIMENTATION PRINCIPALE"]
["10.1.1","Branchement niche CIE et raccordement électrique"]
["10.1.1.1","F/P câble HFG 1000 4 x 6 mm2","ml",50]
["10.1.2","Mise à la terre et liaisons équipotentielles"]
["10.1.2.1","Mise à la terre par câble cuivre nu 25 mm2 y/c raccords bimétalliques et barrette de coupure","ml",{"$f":"2*(12.192+2.438)","v":29.26}]
["10.1.3","Tableau de distribution"]
["10.1.3.1","F/P Coffret 16 modules y/c protections de tête triphasé et protections de circuits par DPN","u",1]
["10.2","DISTRIBUTION INTERIEURE"]
["10.2.1","Câblages électriques "]
["10.2.1.1","F/P câble U 500 VGV 3 x 1,5 mm2 sous tube isolant et sous goulotte","ml",28.8]
["10.3","APPAREILLAGES"]
["10.3.1","Interrupteurs"]
["10.3.1.1","F/P Interrupteur D.A  étanche de type apparent","u",1]
["10.3.2","Appareils d'éclairage"]
["10.3.2.1","F/P Réglette fluo-mono LED nue 0,60 m 18 w","u",6]
["10.3.2.2","F/P Réglette fluo-mono étanche 1,20 m  36 w","u",4]
["10.4","DIVERS"]
["10.4.1","Frais de contrôle SECUREL","ens.",1]
[]
["TOTAL LOT N°10 : ELECTRICITE"]
[]
["18.0","LOT N°18 : PEINTURE"]
[]
["18.1","TRAVAUX PREPARATOIRES"," "]
["18.1.1","Travaux préliminaires"]
["18.1.1.1","Brossage, égrenage et époussetage de maçonneries et ouvrages béton","m² ",{"$f":"+D10","v":37.289096000000001}]
["18.1.1.2","Grattage, lavage et nettoyage par dégraissage des supports ferreux","m² ",{"$f":"+D82","v":210.11339200000003}]
["18.2","PEINTURE SUR OUVRAGES MACONNES ET BETONS"]
["18.2.1","Peinture sur plateforme"]
["18.2.1.1","F/P Peinture de sol acrylique satiné type FREITASOL AQUA COLOR","m² ",{"$f":"+D10","v":37.289096000000001}]
["18.3","PEINTURE SUR ELEMENTS FERREUX"]
["18.3.1","Traitement anticorrosion des éléments ferreux"]
["18.3.1.1","F/A Primaire par SIGMACOVER 280 de chez SEIGNEURIE en deux (2) couches","m² ",{"$f":"2*(12.129*2.591*2+2.438*2.591*2+2.438*12.129)","v":210.11339200000003}]
["18.3.2","Peinture de finition sur éléments ferreux"]
["18.3.2.1","F/A Peinture de finition par SIGMADUR 550 de chez SEIGNEURIE en deux (2) couches","m² ",{"$f":"+D82","v":210.11339200000003}]
["18.4","DIVERS"]
["18.4.1","Panneau calligraphique en plexiglas format 80 x 60 ép. 6 mm sur supports métalliques y compris fixations et pose","ens.",1]
[]
["TOTAL LOT N°18 : PEINTURE"]
[]
[]
["TOTAL GENERAL HT (F CFA)"]
[]
[]
[]
["N°","DESIGNATION",null,null,"MONTANT"]
[]
[1,"LOT N°0 : GENERALITES"]
[2,"LOT N°1 : TERRASSEMENTS"]
[3,"LOT N°2 : GROS OEUVRE"]
[4,"LOT N°6 : SERRURERIE"]
[5,"LOT N°10 : ELECTRICITE"]
[7,"LOT N°18 : PEINTURE"]
[]
["TOTAL GENERAL HT (F CFA)"]

{"sheet":"LOT B JACQUEVILLE","index":4,"n_rows":103,"n_cols":6,"rows_kept":103,"cut":false,"hidden":false,"merged":[[93,1,93,3],[93,4,93,5],[1,0,1,5],[11,0,11,4],[18,0,18,4],[28,0,28,4],[34,0,34,4],[36,0,36,4],[44,0,44,4],[67,0,67,4],[86,0,86,4],[89,0,89,3],[89,4,89,5],[94,1,94,3],[94,4,94,5],[95,1,95,3],[95,4,95,5],[96,1,96,3],[96,4,96,5],[97,1,97,3],[97,4,97,5],[98,1,98,3],[98,4,98,5],[99,1,99,3],[99,4,99,5],[100,1,100,3],[100,4,100,5],[101,1,101,3],[102,0,102,3],[102,4,102,5]]}
[]
["VARIANTE 1 - DQ PROJET D'AMENAGEMENT D'ENTREPÔTS POUR LA COMMISSION ELECTORALE LOCALE DE JACQUEVILLE / COMMISSION ELECTORALE INDEPENDANTE"]
[]
["N°","DESIGNATION DES OUVRAGES","U","QTE","P.U","PRIX TOTAL"]
[]
["0.0","LOT N°0 : GENERALITES"]
[]
["0.1","GENERALITES"]
["0.1.1","Implantation de l'ouvrage","m2",{"$f":"(12.192+0.5)*(2.438+0.5)","v":37.289096000000001}]
["0.1.2","Elaboration des plans d'exécution, essais de conformité et transmission de fiches techniques","forf.",1]
[]
["TOTAL LOT N°0 : GENERALITES"]
[]
["1.0","LOT N°1 : TERRASSEMENTS"]
[]
["1.1","FOUILLES DE FONDATIONS"]
["1.1.1","Fouilles de la plateforme","m3",{"$f":"12.629*2.938*0.25","v":9.2760005000000003}]
[]
["TOTAL LOT N°1 : TERRASSEMENTS"]
[]
["2.0","LOT N°2 : GROS OEUVRE"]
[]
["2.1","OUVRAGES EN INFRASTRUCTURE"]
["2.1.1","Béton de propreté dosé à 150 kg/m3 d'ép. 5 cm","m3",{"$f":"((12.192+0.5)*(2.438+0.5))*0.05","v":1.8644548000000001}]
["2.1.2","Plate-forme en BA de terre-plein"]
["2.1.2.1","Béton de forme d'épaisseur 45 cm minimum y compris armatures","m² ",{"$f":"(12.192+0.5)*(2.438+0.5)","v":37.289096000000001}]
["2.1.2.2","Coffrage bois ","m² ",{"$f":"2*(12.629+2.938)*0.15","v":4.6700999999999997}]
[]
["SOUS TOTAL 2.1 "]
[]
["2.2","OUVRAGES EN SUPERSTRUCTURE "]
["2.2.1","Enduits sur ouvrages bétons"]
["2.2.1.1","Enduit ciment hydrofuge lissé ","m² ",{"$f":"8*(4*0.5*0.55)+2*(12.629+2.938)","v":39.933999999999997}]
[]
["SOUS TOTAL 2.2"]
[]
["TOTAL LOT N°2 : GROS ŒUVRE "]
[]
["6.0","LOT N°6 : SERRURERIE"]
[]
["6.1","CONTENEUR"]
["6.1.1","Conteneur maritime de type HIGH CUBE"]
["6.1.1.1","F/P Conteneur Longueur 12192 mm x Largeur 2438 mm x Hauteur 2896 de type HIGH CUBE y/c 2 fermetures antivols haute sécurité","u",1]
[]
["TOTAL LOT N°6 : SERRURERIE"]
[]
["10.0","LOT N°10 : ELECTRICITE"]
[]
["10.1","ALIMENTATION PRINCIPALE"]
["10.1.1","Branchement niche CIE et raccordement électrique"]
["10.1.1.1","F/P câble HFG 1000 4 x 6 mm2","ml",50]
["10.1.2","Mise à la terre et liaisons équipotentielles"]
["10.1.2.1","Mise à la terre par câble cuivre nu 25 mm2 y/c raccords bimétalliques et barrette de coupure","ml",{"$f":"2*(12.192+2.438)","v":29.26}]
["10.1.3","Tableau de distribution"]
["10.1.3.1","F/P Coffret 16 modules y/c protections de tête triphasé et protections de circuits par DPN","u",1]
["10.2","DISTRIBUTION INTERIEURE"]
["10.2.1","Câblages électriques "]
["10.2.1.1","F/P câble U 500 VGV 3 x 1,5 mm2 sous tube isolant et sous goulotte","ml",28.8]
["10.3","APPAREILLAGES"]
["10.3.1","Interrupteurs"]
["10.3.1.1","F/P Interrupteur D.A  étanche de type apparent","u",1]
["10.3.2","Appareils d'éclairage"]
["10.3.2.1","F/P Réglette fluo-mono LED nue 0,60 m 18 w","u",6]
["10.3.2.2","F/P Réglette fluo-mono étanche 1,20 m  36 w","u",4]
["10.4","DIVERS"]
["10.4.1","Frais de contrôle SECUREL","ens.",1]
[]
["TOTAL LOT N°10 : ELECTRICITE"]
[]
["18.0","LOT N°18 : PEINTURE"]
[]
["18.1","TRAVAUX PREPARATOIRES"," "]
["18.1.1","Travaux préliminaires"]
["18.1.1.1","Brossage, égrenage et époussetage de maçonneries et ouvrages béton","m² ",{"$f":"+D9","v":37.289096000000001}]
["18.1.1.2","Grattage, lavage et nettoyage par dégraissage des supports ferreux","m² ",{"$f":"+D81","v":210.11339200000003}]
["18.2","PEINTURE SUR OUVRAGES MACONNES ET BETONS"]
["18.2.1","Peinture sur plateforme"]
["18.2.1.1","F/P Peinture de sol acrylique satiné type FREITASOL AQUA COLOR","m² ",{"$f":"+D9","v":37.289096000000001}]
["18.3","PEINTURE SUR ELEMENTS FERREUX"]
["18.3.1","Traitement anticorrosion des éléments ferreux"]
["18.3.1.1","F/A Primaire par SIGMACOVER 280 de chez SEIGNEURIE en deux (2) couches","m² ",{"$f":"2*(12.129*2.591*2+2.438*2.591*2+2.438*12.129)","v":210.11339200000003}]
["18.3.2","Peinture de finition sur éléments ferreux"]
["18.3.2.1","F/A Peinture de finition par SIGMADUR 550 de chez SEIGNEURIE en deux (2) couches","m² ",{"$f":"+D81","v":210.11339200000003}]
["18.4","DIVERS"]
["18.4.1","Panneau calligraphique en plexiglas format 80 x 60 ép. 6 mm sur supports métalliques y compris fixations et pose","ens.",1]
[]
["TOTAL LOT N°18 : PEINTURE"]
[]
[]
["TOTAL GENERAL HT (F CFA)"]
[]
[]
[]
["N°","DESIGNATION",null,null,"MONTANT"]
[]
[1,"LOT N°0 : GENERALITES"]
[2,"LOT N°1 : TERRASSEMENTS"]
[3,"LOT N°2 : GROS OEUVRE"]
[4,"LOT N°6 : SERRURERIE"]
[5,"LOT N°10 : ELECTRICITE"]
[7,"LOT N°18 : PEINTURE"]
[]
["TOTAL GENERAL HT (F CFA)"]

{"sheet":"LOT B GRAND LAHOU","index":5,"n_rows":103,"n_cols":6,"rows_kept":103,"cut":false,"hidden":false,"merged":[[93,1,93,3],[93,4,93,5],[1,0,1,5],[11,0,11,4],[18,0,18,4],[28,0,28,4],[34,0,34,4],[36,0,36,4],[44,0,44,4],[67,0,67,4],[86,0,86,4],[89,0,89,3],[89,4,89,5],[94,1,94,3],[94,4,94,5],[95,1,95,3],[95,4,95,5],[96,1,96,3],[96,4,96,5],[97,1,97,3],[97,4,97,5],[98,1,98,3],[98,4,98,5],[99,1,99,3],[99,4,99,5],[100,1,100,3],[100,4,100,5],[101,1,101,3],[102,0,102,3],[102,4,102,5]]}
[]
["VARIANTE 1 - DQ PROJET D'AMENAGEMENT D'ENTREPÔTS POUR LA COMMISSION ELECTORALE LOCALE DE GRAND LAHOU / COMMISSION ELECTORALE INDEPENDANTE"]
[]
["N°","DESIGNATION DES OUVRAGES","U","QTE","P.U","PRIX TOTAL"]
[]
["0.0","LOT N°0 : GENERALITES"]
[]
["0.1","GENERALITES"]
["0.1.1","Implantation de l'ouvrage","m2",{"$f":"(12.192+0.5)*(2.438+0.5)","v":37.289096000000001}]
["0.1.2","Elaboration des plans d'exécution, essais de conformité et transmission de fiches techniques","forf.",1]
[]
["TOTAL LOT N°0 : GENERALITES"]
[]
["1.0","LOT N°1 : TERRASSEMENTS"]
[]
["1.1","FOUILLES DE FONDATIONS"]
["1.1.1","Fouilles de la plateforme","m3",{"$f":"12.629*2.938*0.25","v":9.2760005000000003}]
[]
["TOTAL LOT N°1 : TERRASSEMENTS"]
[]
["2.0","LOT N°2 : GROS OEUVRE"]
[]
["2.1","OUVRAGES EN INFRASTRUCTURE"]
["2.1.1","Béton de propreté dosé à 150 kg/m3 d'ép. 5 cm","m3",{"$f":"((12.192+0.5)*(2.438+0.5))*0.05","v":1.8644548000000001}]
["2.1.2","Plate-forme en BA de terre-plein"]
["2.1.2.1","Béton de forme d'épaisseur 45 cm minimum y compris armatures","m² ",{"$f":"(12.192+0.5)*(2.438+0.5)","v":37.289096000000001}]
["2.1.2.2","Coffrage bois ","m² ",{"$f":"2*(12.629+2.938)*0.15","v":4.6700999999999997}]
[]
["SOUS TOTAL 2.1 "]
[]
["2.2","OUVRAGES EN SUPERSTRUCTURE "]
["2.2.1","Enduits sur ouvrages bétons"]
["2.2.1.1","Enduit ciment hydrofuge lissé ","m² ",{"$f":"8*(4*0.5*0.55)+2*(12.629+2.938)","v":39.933999999999997}]
[]
["SOUS TOTAL 2.2"]
[]
["TOTAL LOT N°2 : GROS ŒUVRE "]
[]
["6.0","LOT N°6 : SERRURERIE"]
[]
["6.1","CONTENEUR"]
["6.1.1","Conteneur maritime de type HIGH CUBE"]
["6.1.1.1","F/P Conteneur Longueur 12192 mm x Largeur 2438 mm x Hauteur 2896 de type HIGH CUBE y/c 2 fermetures antivols haute sécurité","u",1]
[]
["TOTAL LOT N°6 : SERRURERIE"]
[]
["10.0","LOT N°10 : ELECTRICITE"]
[]
["10.1","ALIMENTATION PRINCIPALE"]
["10.1.1","Branchement niche CIE et raccordement électrique"]
["10.1.1.1","F/P câble HFG 1000 4 x 6 mm2","ml",50]
["10.1.2","Mise à la terre et liaisons équipotentielles"]
["10.1.2.1","Mise à la terre par câble cuivre nu 25 mm2 y/c raccords bimétalliques et barrette de coupure","ml",{"$f":"2*(12.192+2.438)","v":29.26}]
["10.1.3","Tableau de distribution"]
["10.1.3.1","F/P Coffret 16 modules y/c protections de tête triphasé et protections de circuits par DPN","u",1]
["10.2","DISTRIBUTION INTERIEURE"]
["10.2.1","Câblages électriques "]
["10.2.1.1","F/P câble U 500 VGV 3 x 1,5 mm2 sous tube isolant et sous goulotte","ml",28.8]
["10.3","APPAREILLAGES"]
["10.3.1","Interrupteurs"]
["10.3.1.1","F/P Interrupteur D.A  étanche de type apparent","u",1]
["10.3.2","Appareils d'éclairage"]
["10.3.2.1","F/P Réglette fluo-mono LED nue 0,60 m 18 w","u",6]
["10.3.2.2","F/P Réglette fluo-mono étanche 1,20 m  36 w","u",4]
["10.4","DIVERS"]
["10.4.1","Frais de contrôle SECUREL","ens.",1]
[]
["TOTAL LOT N°10 : ELECTRICITE"]
[]
["18.0","LOT N°18 : PEINTURE"]
[]
["18.1","TRAVAUX PREPARATOIRES"," "]
["18.1.1","Travaux préliminaires"]
["18.1.1.1","Brossage, égrenage et époussetage de maçonneries et ouvrages béton","m² ",{"$f":"+D9","v":37.289096000000001}]
["18.1.1.2","Grattage, lavage et nettoyage par dégraissage des supports ferreux","m² ",{"$f":"+D81","v":210.11339200000003}]
["18.2","PEINTURE SUR OUVRAGES MACONNES ET BETONS"]
["18.2.1","Peinture sur plateforme"]
["18.2.1.1","F/P Peinture de sol acrylique satiné type FREITASOL AQUA COLOR","m² ",{"$f":"+D9","v":37.289096000000001}]
["18.3","PEINTURE SUR ELEMENTS FERREUX"]
["18.3.1","Traitement anticorrosion des éléments ferreux"]
["18.3.1.1","F/A Primaire par SIGMACOVER 280 de chez SEIGNEURIE en deux (2) couches","m² ",{"$f":"2*(12.129*2.591*2+2.438*2.591*2+2.438*12.129)","v":210.11339200000003}]
["18.3.2","Peinture de finition sur éléments ferreux"]
["18.3.2.1","F/A Peinture de finition par SIGMADUR 550 de chez SEIGNEURIE en deux (2) couches","m² ",{"$f":"+D81","v":210.11339200000003}]
["18.4","DIVERS"]
["18.4.1","Panneau calligraphique en plexiglas format 80 x 60 ép. 6 mm sur supports métalliques y compris fixations et pose","ens.",1]
[]
["TOTAL LOT N°18 : PEINTURE"]
[]
[]
["TOTAL GENERAL HT (F CFA)"]
[]
[]
[]
["N°","DESIGNATION",null,null,"MONTANT"]
[]
[1,"LOT N°0 : GENERALITES"]
[2,"LOT N°1 : TERRASSEMENTS"]
[3,"LOT N°2 : GROS OEUVRE"]
[4,"LOT N°6 : SERRURERIE"]
[5,"LOT N°10 : ELECTRICITE"]
[7,"LOT N°18 : PEINTURE"]
[]
["TOTAL GENERAL HT (F CFA)"]

{"sheet":"LOT B BUYO","index":6,"n_rows":103,"n_cols":6,"rows_kept":103,"cut":false,"hidden":false,"merged":[[93,1,93,3],[93,4,93,5],[1,0,1,5],[11,0,11,4],[18,0,18,4],[28,0,28,4],[34,0,34,4],[36,0,36,4],[44,0,44,4],[67,0,67,4],[86,0,86,4],[89,0,89,3],[89,4,89,5],[94,1,94,3],[94,4,94,5],[95,1,95,3],[95,4,95,5],[96,1,96,3],[96,4,96,5],[97,1,97,3],[97,4,97,5],[98,1,98,3],[98,4,98,5],[99,1,99,3],[99,4,99,5],[100,1,100,3],[100,4,100,5],[101,1,101,3],[102,0,102,3],[102,4,102,5]]}
[]
["VARIANTE 4 - DQ PROJET D'AMENAGEMENT D'ENTREPÔTS POUR LA COMMISSION ELECTORALE LOCALE DE BUYO / COMMISSION ELECTORALE INDEPENDANTE"]
[]
["N°","DESIGNATION DES OUVRAGES","U","QTE","P.U","PRIX TOTAL"]
[]
["0.0","LOT N°0 : GENERALITES"]
[]
["0.1","GENERALITES"]
["0.1.1","Implantation de l'ouvrage","m2",{"$f":"(12.192+0.5)*(2.438+0.5)","v":37.289096000000001}]
["0.1.2","Elaboration des plans d'exécution, essais de conformité et transmission de fiches techniques","forf.",1]
[]
["TOTAL LOT N°0 : GENERALITES"]
[]
["1.0","LOT N°1 : TERRASSEMENTS"]
[]
["1.1","FOUILLES DE FONDATIONS"]
["1.1.1","Fouilles de la plateforme","m3",{"$f":"12.629*2.938*0.25","v":9.2760005000000003}]
[]
["TOTAL LOT N°1 : TERRASSEMENTS"]
[]
["2.0","LOT N°2 : GROS OEUVRE"]
[]
["2.1","OUVRAGES EN INFRASTRUCTURE"]
["2.1.1","Béton de propreté dosé à 150 kg/m3 d'ép. 5 cm","m3",{"$f":"((12.192+0.5)*(2.438+0.5))*0.05","v":1.8644548000000001}]
["2.1.2","Plate-forme en BA de terre-plein"]
["2.1.2.1","Béton de forme d'épaisseur 45 cm minimum y compris armatures","m² ",{"$f":"(12.192+0.5)*(2.438+0.5)","v":37.289096000000001}]
["2.1.2.2","Coffrage bois ","m² ",{"$f":"2*(12.629+2.938)*0.15","v":4.6700999999999997}]
[]
["SOUS TOTAL 2.1 "]
[]
["2.2","OUVRAGES EN SUPERSTRUCTURE "]
["2.2.1","Enduits sur ouvrages bétons"]
["2.2.1.1","Enduit ciment hydrofuge lissé ","m² ",{"$f":"8*(4*0.5*0.55)+2*(12.629+2.938)","v":39.933999999999997}]
[]
["SOUS TOTAL 2.2"]
[]
["TOTAL LOT N°2 : GROS ŒUVRE "]
[]
["6.0","LOT N°6 : SERRURERIE"]
[]
["6.1","CONTENEUR"]
["6.1.1","Conteneur maritime existant"]
["6.1.1.1","Manutention du conteneur existant sur la plate-forme béton","u",1]
[]
["TOTAL LOT N°6 : SERRURERIE"]
[]
["10.0","LOT N°10 : ELECTRICITE"]
[]
["10.1","ALIMENTATION PRINCIPALE"]
["10.1.1","Branchement niche CIE et raccordement électrique"]
["10.1.1.1","F/P câble HFG 1000 4 x 6 mm2","ml",50]
["10.1.2","Mise à la terre et liaisons équipotentielles"]
["10.1.2.1","Mise à la terre par câble cuivre nu 25 mm2 y/c raccords bimétalliques et barrette de coupure","ml",{"$f":"2*(12.192+2.438)","v":29.26}]
["10.1.3","Tableau de distribution"]
["10.1.3.1","F/P Coffret 16 modules y/c protections de tête triphasé et protections de circuits par DPN","u",1]
["10.2","DISTRIBUTION INTERIEURE"]
["10.2.1","Câblages électriques "]
["10.2.1.1","F/P câble U 500 VGV 3 x 1,5 mm2 sous tube isolant et sous goulotte","ml",28.8]
["10.3","APPAREILLAGES"]
["10.3.1","Interrupteurs"]
["10.3.1.1","F/P Interrupteur D.A  étanche de type apparent","u",1]
["10.3.2","Appareils d'éclairage"]
["10.3.2.1","F/P Réglette fluo-mono LED nue 0,60 m 18 w","u",6]
["10.3.2.2","F/P Réglette fluo-mono étanche 1,20 m  36 w","u",4]
["10.4","DIVERS"]
["10.4.1","Frais de contrôle SECUREL","ens.",1]
[]
["TOTAL LOT N°10 : ELECTRICITE"]
[]
["18.0","LOT N°18 : PEINTURE"]
[]
["18.1","TRAVAUX PREPARATOIRES"," "]
["18.1.1","Travaux préliminaires"]
["18.1.1.1","Brossage, égrenage et époussetage de maçonneries et ouvrages béton","m² ",{"$f":"+D9","v":37.289096000000001}]
["18.1.1.2","Grattage, lavage et nettoyage par dégraissage des supports ferreux","m² ",{"$f":"+D81","v":210.11339200000003}]
["18.2","PEINTURE SUR OUVRAGES MACONNES ET BETONS"]
["18.2.1","Peinture sur plateforme"]
["18.2.1.1","F/P Peinture de sol acrylique satiné type FREITASOL AQUA COLOR","m² ",{"$f":"+D9","v":37.289096000000001}]
["18.3","PEINTURE SUR ELEMENTS FERREUX"]
["18.3.1","Traitement anticorrosion des éléments ferreux"]
["18.3.1.1","F/A Primaire par SIGMACOVER 280 de chez SEIGNEURIE en deux (2) couches","m² ",{"$f":"2*(12.129*2.591*2+2.438*2.591*2+2.438*12.129)","v":210.11339200000003}]
["18.3.2","Peinture de finition sur éléments ferreux"]
["18.3.2.1","F/A Peinture de finition par SIGMADUR 550 de chez SEIGNEURIE en deux (2) couches","m² ",{"$f":"+D81","v":210.11339200000003}]
["18.4","DIVERS"]
["18.4.1","Panneau calligraphique en plexiglas format 80 x 60 ép. 6 mm sur supports métalliques y compris fixations et pose","ens.",1]
[]
["TOTAL LOT N°18 : PEINTURE"]
[]
[]
["TOTAL GENERAL HT (F CFA)"]
[]
[]
[]
["N°","DESIGNATION",null,null,"MONTANT"]
[]
[1,"LOT N°0 : GENERALITES"]
[2,"LOT N°1 : TERRASSEMENTS"]
[3,"LOT N°2 : GROS OEUVRE"]
[4,"LOT N°6 : SERRURERIE"]
[5,"LOT N°10 : ELECTRICITE"]
[7,"LOT N°18 : PEINTURE"]
[]
["TOTAL GENERAL HT (F CFA)"]

{"sheet":"LOT B SOUBRE","index":7,"n_rows":103,"n_cols":6,"rows_kept":103,"cut":false,"hidden":false,"merged":[[93,1,93,3],[93,4,93,5],[1,0,1,5],[11,0,11,4],[18,0,18,4],[28,0,28,4],[34,0,34,4],[36,0,36,4],[44,0,44,4],[67,0,67,4],[86,0,86,4],[89,0,89,3],[89,4,89,5],[94,1,94,3],[94,4,94,5],[95,1,95,3],[95,4,95,5],[96,1,96,3],[96,4,96,5],[97,1,97,3],[97,4,97,5],[98,1,98,3],[98,4,98,5],[99,1,99,3],[99,4,99,5],[100,1,100,3],[100,4,100,5],[101,1,101,3],[102,0,102,3],[102,4,102,5]]}
[]
["VARIANTE 1 - DQ PROJET D'AMENAGEMENT D'ENTREPÔTS POUR LA COMMISSION ELECTORALE LOCALE DE SOUBRE / COMMISSION ELECTORALE INDEPENDANTE"]
[]
["N°","DESIGNATION DES OUVRAGES","U","QTE","P.U","PRIX TOTAL"]
[]
["0.0","LOT N°0 : GENERALITES"]
[]
["0.1","GENERALITES"]
["0.1.1","Implantation de l'ouvrage","m2",{"$f":"(12.192+0.5)*(2.438+0.5)","v":37.289096000000001}]
["0.1.2","Elaboration des plans d'exécution, essais de conformité et transmission de fiches techniques","forf.",1]
[]
["TOTAL LOT N°0 : GENERALITES"]
[]
["1.0","LOT N°1 : TERRASSEMENTS"]
[]
["1.1","FOUILLES DE FONDATIONS"]
["1.1.1","Fouilles de la plateforme","m3",{"$f":"12.629*2.938*0.25","v":9.2760005000000003}]
[]
["TOTAL LOT N°1 : TERRASSEMENTS"]
[]
["2.0","LOT N°2 : GROS OEUVRE"]
[]
["2.1","OUVRAGES EN INFRASTRUCTURE"]
["2.1.1","Béton de propreté dosé à 150 kg/m3 d'ép. 5 cm","m3",{"$f":"((12.192+0.5)*(2.438+0.5))*0.05","v":1.8644548000000001}]
["2.1.2","Plate-forme en BA de terre-plein"]
["2.1.2.1","Béton de forme d'épaisseur 45 cm minimum y compris armatures","m² ",{"$f":"(12.192+0.5)*(2.438+0.5)","v":37.289096000000001}]
["2.1.2.2","Coffrage bois ","m² ",{"$f":"2*(12.629+2.938)*0.15","v":4.6700999999999997}]
[]
["SOUS TOTAL 2.1 "]
[]
["2.2","OUVRAGES EN SUPERSTRUCTURE "]
["2.2.1","Enduits sur ouvrages bétons"]
["2.2.1.1","Enduit ciment hydrofuge lissé ","m² ",{"$f":"8*(4*0.5*0.55)+2*(12.629+2.938)","v":39.933999999999997}]
[]
["SOUS TOTAL 2.2"]
[]
["TOTAL LOT N°2 : GROS ŒUVRE "]
[]
["6.0","LOT N°6 : SERRURERIE"]
[]
["6.1","CONTENEUR"]
["6.1.1","Conteneur maritime de type HIGH CUBE"]
["6.1.1.1","F/P Conteneur Longueur 12192 mm x Largeur 2438 mm x Hauteur 2896 de type HIGH CUBE y/c 2 fermetures antivols haute sécurité","u",1]
[]
["TOTAL LOT N°6 : SERRURERIE"]
[]
["10.0","LOT N°10 : ELECTRICITE"]
[]
["10.1","ALIMENTATION PRINCIPALE"]
["10.1.1","Branchement niche CIE et raccordement électrique"]
["10.1.1.1","F/P câble HFG 1000 4 x 6 mm2","ml",50]
["10.1.2","Mise à la terre et liaisons équipotentielles"]
["10.1.2.1","Mise à la terre par câble cuivre nu 25 mm2 y/c raccords bimétalliques et barrette de coupure","ml",{"$f":"2*(12.192+2.438)","v":29.26}]
["10.1.3","Tableau de distribution"]
["10.1.3.1","F/P Coffret 16 modules y/c protections de tête triphasé et protections de circuits par DPN","u",1]
["10.2","DISTRIBUTION INTERIEURE"]
["10.2.1","Câblages électriques "]
["10.2.1.1","F/P câble U 500 VGV 3 x 1,5 mm2 sous tube isolant et sous goulotte","ml",28.8]
["10.3","APPAREILLAGES"]
["10.3.1","Interrupteurs"]
["10.3.1.1","F/P Interrupteur D.A  étanche de type apparent","u",1]
["10.3.2","Appareils d'éclairage"]
["10.3.2.1","F/P Réglette fluo-mono LED nue 0,60 m 18 w","u",6]
["10.3.2.2","F/P Réglette fluo-mono étanche 1,20 m  36 w","u",4]
["10.4","DIVERS"]
["10.4.1","Frais de contrôle SECUREL","ens.",1]
[]
["TOTAL LOT N°10 : ELECTRICITE"]
[]
["18.0","LOT N°18 : PEINTURE"]
[]
["18.1","TRAVAUX PREPARATOIRES"," "]
["18.1.1","Travaux préliminaires"]
["18.1.1.1","Brossage, égrenage et époussetage de maçonneries et ouvrages béton","m² ",{"$f":"+D9","v":37.289096000000001}]
["18.1.1.2","Grattage, lavage et nettoyage par dégraissage des supports ferreux","m² ",{"$f":"+D81","v":210.11339200000003}]
["18.2","PEINTURE SUR OUVRAGES MACONNES ET BETONS"]
["18.2.1","Peinture sur plateforme"]
["18.2.1.1","F/P Peinture de sol acrylique satiné type FREITASOL AQUA COLOR","m² ",{"$f":"+D9","v":37.289096000000001}]
["18.3","PEINTURE SUR ELEMENTS FERREUX"]
["18.3.1","Traitement anticorrosion des éléments ferreux"]
["18.3.1.1","F/A Primaire par SIGMACOVER 280 de chez SEIGNEURIE en deux (2) couches","m² ",{"$f":"2*(12.129*2.591*2+2.438*2.591*2+2.438*12.129)","v":210.11339200000003}]
["18.3.2","Peinture de finition sur éléments ferreux"]
["18.3.2.1","F/A Peinture de finition par SIGMADUR 550 de chez SEIGNEURIE en deux (2) couches","m² ",{"$f":"+D81","v":210.11339200000003}]
["18.4","DIVERS"]
["18.4.1","Panneau calligraphique en plexiglas format 80 x 60 ép. 6 mm sur supports métalliques y compris fixations et pose","ens.",1]
[]
["TOTAL LOT N°18 : PEINTURE"]
[]
[]
["TOTAL GENERAL HT (F CFA)"]
[]
[]
[]
["N°","DESIGNATION",null,null,"MONTANT"]
[]
[1,"LOT N°0 : GENERALITES"]
[2,"LOT N°1 : TERRASSEMENTS"]
[3,"LOT N°2 : GROS OEUVRE"]
[4,"LOT N°6 : SERRURERIE"]
[5,"LOT N°10 : ELECTRICITE"]
[7,"LOT N°18 : PEINTURE"]
[]
["TOTAL GENERAL HT (F CFA)"]

{"sheet":"LOT B SAN PEDRO","index":8,"n_rows":103,"n_cols":6,"rows_kept":103,"cut":false,"hidden":false,"merged":[[93,1,93,3],[93,4,93,5],[1,0,1,5],[11,0,11,4],[18,0,18,4],[28,0,28,4],[34,0,34,4],[36,0,36,4],[44,0,44,4],[67,0,67,4],[86,0,86,4],[89,0,89,3],[89,4,89,5],[94,1,94,3],[94,4,94,5],[95,1,95,3],[95,4,95,5],[96,1,96,3],[96,4,96,5],[97,1,97,3],[97,4,97,5],[98,1,98,3],[98,4,98,5],[99,1,99,3],[99,4,99,5],[100,1,100,3],[100,4,100,5],[101,1,101,3],[102,0,102,3],[102,4,102,5]]}
[]
["VARIANTE 1 - DQ PROJET D'AMENAGEMENT D'ENTREPÔTS POUR LA COMMISSION ELECTORALE LOCALE DE SAN PEDRO / COMMISSION ELECTORALE INDEPENDANTE"]
[]
["N°","DESIGNATION DES OUVRAGES","U","QTE","P.U","PRIX TOTAL"]
[]
["0.0","LOT N°0 : GENERALITES"]
[]
["0.1","GENERALITES"]
["0.1.1","Implantation de l'ouvrage","m2",{"$f":"(12.192+0.5)*(2.438+0.5)","v":37.289096000000001}]
["0.1.2","Elaboration des plans d'exécution, essais de conformité et transmission de fiches techniques","forf.",1]
[]
["TOTAL LOT N°0 : GENERALITES"]
[]
["1.0","LOT N°1 : TERRASSEMENTS"]
[]
["1.1","FOUILLES DE FONDATIONS"]
["1.1.1","Fouilles de la plateforme","m3",{"$f":"12.629*2.938*0.25","v":9.2760005000000003}]
[]
["TOTAL LOT N°1 : TERRASSEMENTS"]
[]
["2.0","LOT N°2 : GROS OEUVRE"]
[]
["2.1","OUVRAGES EN INFRASTRUCTURE"]
["2.1.1","Béton de propreté dosé à 150 kg/m3 d'ép. 5 cm","m3",{"$f":"((12.192+0.5)*(2.438+0.5))*0.05","v":1.8644548000000001}]
["2.1.2","Plate-forme en BA de terre-plein"]
["2.1.2.1","Béton de forme d'épaisseur 45 cm minimum y compris armatures","m² ",{"$f":"(12.192+0.5)*(2.438+0.5)","v":37.289096000000001}]
["2.1.2.2","Coffrage bois ","m² ",{"$f":"2*(12.629+2.938)*0.15","v":4.6700999999999997}]
[]
["SOUS TOTAL 2.1 "]
[]
["2.2","OUVRAGES EN SUPERSTRUCTURE "]
["2.2.1","Enduits sur ouvrages bétons"]
["2.2.1.1","Enduit ciment hydrofuge lissé ","m² ",{"$f":"8*(4*0.5*0.55)+2*(12.629+2.938)","v":39.933999999999997}]
[]
["SOUS TOTAL 2.2"]
[]
["TOTAL LOT N°2 : GROS ŒUVRE "]
[]
["6.0","LOT N°6 : SERRURERIE"]
[]
["6.1","CONTENEUR"]
["6.1.1","Conteneur maritime de type HIGH CUBE"]
["6.1.1.1","F/P Conteneur Longueur 12192 mm x Largeur 2438 mm x Hauteur 2896 de type HIGH CUBE y/c 2 fermetures antivols haute sécurité","u",1]
[]
["TOTAL LOT N°6 : SERRURERIE"]
[]
["10.0","LOT N°10 : ELECTRICITE"]
[]
["10.1","ALIMENTATION PRINCIPALE"]
["10.1.1","Branchement niche CIE et raccordement électrique"]
["10.1.1.1","F/P câble HFG 1000 4 x 6 mm2","ml",50]
["10.1.2","Mise à la terre et liaisons équipotentielles"]
["10.1.2.1","Mise à la terre par câble cuivre nu 25 mm2 y/c raccords bimétalliques et barrette de coupure","ml",{"$f":"2*(12.192+2.438)","v":29.26}]
["10.1.3","Tableau de distribution"]
["10.1.3.1","F/P Coffret 16 modules y/c protections de tête triphasé et protections de circuits par DPN","u",1]
["10.2","DISTRIBUTION INTERIEURE"]
["10.2.1","Câblages électriques "]
["10.2.1.1","F/P câble U 500 VGV 3 x 1,5 mm2 sous tube isolant et sous goulotte","ml",28.8]
["10.3","APPAREILLAGES"]
["10.3.1","Interrupteurs"]
["10.3.1.1","F/P Interrupteur D.A  étanche de type apparent","u",1]
["10.3.2","Appareils d'éclairage"]
["10.3.2.1","F/P Réglette fluo-mono LED nue 0,60 m 18 w","u",6]
["10.3.2.2","F/P Réglette fluo-mono étanche 1,20 m  36 w","u",4]
["10.4","DIVERS"]
["10.4.1","Frais de contrôle SECUREL","ens.",1]
[]
["TOTAL LOT N°10 : ELECTRICITE"]
[]
["18.0","LOT N°18 : PEINTURE"]
[]
["18.1","TRAVAUX PREPARATOIRES"," "]
["18.1.1","Travaux préliminaires"]
["18.1.1.1","Brossage, égrenage et époussetage de maçonneries et ouvrages béton","m² ",{"$f":"+D9","v":37.289096000000001}]
["18.1.1.2","Grattage, lavage et nettoyage par dégraissage des supports ferreux","m² ",{"$f":"+D81","v":210.11339200000003}]
["18.2","PEINTURE SUR OUVRAGES MACONNES ET BETONS"]
["18.2.1","Peinture sur plateforme"]
["18.2.1.1","F/P Peinture de sol acrylique satiné type FREITASOL AQUA COLOR","m² ",{"$f":"+D9","v":37.289096000000001}]
["18.3","PEINTURE SUR ELEMENTS FERREUX"]
["18.3.1","Traitement anticorrosion des éléments ferreux"]
["18.3.1.1","F/A Primaire par SIGMACOVER 280 de chez SEIGNEURIE en deux (2) couches","m² ",{"$f":"2*(12.129*2.591*2+2.438*2.591*2+2.438*12.129)","v":210.11339200000003}]
["18.3.2","Peinture de finition sur éléments ferreux"]
["18.3.2.1","F/A Peinture de finition par SIGMADUR 550 de chez SEIGNEURIE en deux (2) couches","m² ",{"$f":"+D81","v":210.11339200000003}]
["18.4","DIVERS"]
["18.4.1","Panneau calligraphique en plexiglas format 80 x 60 ép. 6 mm sur supports métalliques y compris fixations et pose","ens.",1]
[]
["TOTAL LOT N°18 : PEINTURE"]
[]
[]
["TOTAL GENERAL HT (F CFA)"]
[]
[]
[]
["N°","DESIGNATION",null,null,"MONTANT"]
[]
[1,"LOT N°0 : GENERALITES"]
[2,"LOT N°1 : TERRASSEMENTS"]
[3,"LOT N°2 : GROS OEUVRE"]
[4,"LOT N°6 : SERRURERIE"]
[5,"LOT N°10 : ELECTRICITE"]
[7,"LOT N°18 : PEINTURE"]
[]
["TOTAL GENERAL HT (F CFA)"]

{"sheet":"LOT B TABOU","index":9,"n_rows":103,"n_cols":6,"rows_kept":103,"cut":false,"hidden":false,"merged":[[93,1,93,3],[93,4,93,5],[1,0,1,5],[11,0,11,4],[18,0,18,4],[28,0,28,4],[34,0,34,4],[36,0,36,4],[44,0,44,4],[67,0,67,4],[86,0,86,4],[89,0,89,3],[89,4,89,5],[94,1,94,3],[94,4,94,5],[95,1,95,3],[95,4,95,5],[96,1,96,3],[96,4,96,5],[97,1,97,3],[97,4,97,5],[98,1,98,3],[98,4,98,5],[99,1,99,3],[99,4,99,5],[100,1,100,3],[100,4,100,5],[101,1,101,3],[102,0,102,3],[102,4,102,5]]}
[]
["VARIANTE 1 - DQ PROJET D'AMENAGEMENT D'ENTREPÔTS POUR LA COMMISSION ELECTORALE LOCALE DE TABOU / COMMISSION ELECTORALE INDEPENDANTE"]
[]
["N°","DESIGNATION DES OUVRAGES","U","QTE","P.U","PRIX TOTAL"]
[]
["0.0","LOT N°0 : GENERALITES"]
[]
["0.1","GENERALITES"]
["0.1.1","Implantation de l'ouvrage","m2",{"$f":"(12.192+0.5)*(2.438+0.5)","v":37.289096000000001}]
["0.1.2","Elaboration des plans d'exécution, essais de conformité et transmission de fiches techniques","forf.",1]
[]
["TOTAL LOT N°0 : GENERALITES"]
[]
["1.0","LOT N°1 : TERRASSEMENTS"]
[]
["1.1","FOUILLES DE FONDATIONS"]
["1.1.1","Fouilles de la plateforme","m3",{"$f":"12.629*2.938*0.25","v":9.2760005000000003}]
[]
["TOTAL LOT N°1 : TERRASSEMENTS"]
[]
["2.0","LOT N°2 : GROS OEUVRE"]
[]
["2.1","OUVRAGES EN INFRASTRUCTURE"]
["2.1.1","Béton de propreté dosé à 150 kg/m3 d'ép. 5 cm","m3",{"$f":"((12.192+0.5)*(2.438+0.5))*0.05","v":1.8644548000000001}]
["2.1.2","Plate-forme en BA de terre-plein"]
["2.1.2.1","Béton de forme d'épaisseur 45 cm minimum y compris armatures","m² ",{"$f":"(12.192+0.5)*(2.438+0.5)","v":37.289096000000001}]
["2.1.2.2","Coffrage bois ","m² ",{"$f":"2*(12.629+2.938)*0.15","v":4.6700999999999997}]
[]
["SOUS TOTAL 2.1 "]
[]
["2.2","OUVRAGES EN SUPERSTRUCTURE "]
["2.2.1","Enduits sur ouvrages bétons"]
["2.2.1.1","Enduit ciment hydrofuge lissé ","m² ",{"$f":"8*(4*0.5*0.55)+2*(12.629+2.938)","v":39.933999999999997}]
[]
["SOUS TOTAL 2.2"]
[]
["TOTAL LOT N°2 : GROS ŒUVRE "]
[]
["6.0","LOT N°6 : SERRURERIE"]
[]
["6.1","CONTENEUR"]
["6.1.1","Conteneur maritime de type HIGH CUBE"]
["6.1.1.1","F/P Conteneur Longueur 12192 mm x Largeur 2438 mm x Hauteur 2896 de type HIGH CUBE y/c 2 fermetures antivols haute sécurité","u",1]
[]
["TOTAL LOT N°6 : SERRURERIE"]
[]
["10.0","LOT N°10 : ELECTRICITE"]
[]
["10.1","ALIMENTATION PRINCIPALE"]
["10.1.1","Branchement niche CIE et raccordement électrique"]
["10.1.1.1","F/P câble HFG 1000 4 x 6 mm2","ml",50]
["10.1.2","Mise à la terre et liaisons équipotentielles"]
["10.1.2.1","Mise à la terre par câble cuivre nu 25 mm2 y/c raccords bimétalliques et barrette de coupure","ml",{"$f":"2*(12.192+2.438)","v":29.26}]
["10.1.3","Tableau de distribution"]
["10.1.3.1","F/P Coffret 16 modules y/c protections de tête triphasé et protections de circuits par DPN","u",1]
["10.2","DISTRIBUTION INTERIEURE"]
["10.2.1","Câblages électriques "]
["10.2.1.1","F/P câble U 500 VGV 3 x 1,5 mm2 sous tube isolant et sous goulotte","ml",28.8]
["10.3","APPAREILLAGES"]
["10.3.1","Interrupteurs"]
["10.3.1.1","F/P Interrupteur D.A  étanche de type apparent","u",1]
["10.3.2","Appareils d'éclairage"]
["10.3.2.1","F/P Réglette fluo-mono LED nue 0,60 m 18 w","u",6]
["10.3.2.2","F/P Réglette fluo-mono étanche 1,20 m  36 w","u",4]
["10.4","DIVERS"]
["10.4.1","Frais de contrôle SECUREL","ens.",1]
[]
["TOTAL LOT N°10 : ELECTRICITE"]
[]
["18.0","LOT N°18 : PEINTURE"]
[]
["18.1","TRAVAUX PREPARATOIRES"," "]
["18.1.1","Travaux préliminaires"]
["18.1.1.1","Brossage, égrenage et époussetage de maçonneries et ouvrages béton","m² ",{"$f":"+D9","v":37.289096000000001}]
["18.1.1.2","Grattage, lavage et nettoyage par dégraissage des supports ferreux","m² ",{"$f":"+D81","v":210.11339200000003}]
["18.2","PEINTURE SUR OUVRAGES MACONNES ET BETONS"]
["18.2.1","Peinture sur plateforme"]
["18.2.1.1","F/P Peinture de sol acrylique satiné type FREITASOL AQUA COLOR","m² ",{"$f":"+D9","v":37.289096000000001}]
["18.3","PEINTURE SUR ELEMENTS FERREUX"]
["18.3.1","Traitement anticorrosion des éléments ferreux"]
["18.3.1.1","F/A Primaire par SIGMACOVER 280 de chez SEIGNEURIE en deux (2) couches","m² ",{"$f":"2*(12.129*2.591*2+2.438*2.591*2+2.438*12.129)","v":210.11339200000003}]
["18.3.2","Peinture de finition sur éléments ferreux"]
["18.3.2.1","F/A Peinture de finition par SIGMADUR 550 de chez SEIGNEURIE en deux (2) couches","m² ",{"$f":"+D81","v":210.11339200000003}]
["18.4","DIVERS"]
["18.4.1","Panneau calligraphique en plexiglas format 80 x 60 ép. 6 mm sur supports métalliques y compris fixations et pose","ens.",1]
[]
["TOTAL LOT N°18 : PEINTURE"]
[]
[]
["TOTAL GENERAL HT (F CFA)"]
[]
[]
[]
["N°","DESIGNATION",null,null,"MONTANT"]
[]
[1,"LOT N°0 : GENERALITES"]
[2,"LOT N°1 : TERRASSEMENTS"]
[3,"LOT N°2 : GROS OEUVRE"]
[4,"LOT N°6 : SERRURERIE"]
[5,"LOT N°10 : ELECTRICITE"]
[7,"LOT N°18 : PEINTURE"]
[]
["TOTAL GENERAL HT (F CFA)"]

{"sheet":"RECAP. LOT B","index":10,"n_rows":16,"n_cols":6,"rows_kept":16,"cut":false,"hidden":false,"merged":[[13,2,13,4],[14,2,14,4],[15,1,15,4],[15,5,15,6],[8,2,8,4],[8,5,8,6],[9,2,9,4],[10,2,10,4],[11,2,11,4],[12,2,12,4],[5,2,5,4],[5,5,5,6],[6,2,6,4],[6,5,6,6],[7,2,7,4],[7,5,7,6],[4,2,4,4],[4,5,4,6],[0,0,0,7],[2,2,2,4],[2,5,2,6],[3,2,3,4],[3,5,3,6]]}
["LOT B - RECAPITULATIF PROJET D'AMENAGEMENT D'ENTREPÔTS POUR LES COMMISSIONS ELECTORALES LOCALES / COMMISSION ELECTORALE INDEPENDANTE"]
[]
[null,"N°","VILLES",null,null,"MONTANT"]
[]
[null,1,"SASSANDRA"]
[null,2,"FRESCO"]
[null,3,"JACQUEVILLE"]
[null,4,"GRAND LAHOU"]
[null,5,"SOUBRE"]
[null,6,"BUYO"]
[null,7,"MEAGUI"]
[null,8,"GUEYO"]
[null,9,"SAN PEDRO"]
[null,10,"TABOU"]
[]
[null,"TOTAL GENERAL LOT B HT (F CFA)"]